fUSD/lending_fUSD_20250423
["ID","MTS","AMOUNT","RATE_DAILY","PERIOD"]
[358740716,1745406864636,500.0,0.00043835,31]
[358740717,1745406864684,500.0,0.00043835,31]
[358740718,1745406864727,500.0,0.00043835,31]
[358740719,1745406864784,500.0,0.00043835,31]
[358740720,1745406864835,500.0,0.00043835,31]
[358740721,1745406864884,500.0,0.00043835,31]
[358740722,1745406864929,500.0,0.00043835,31]
[358740723,1745406864981,232.97979015,0.00043835,31]
[358740724,1745406865034,500.0,0.00043835,31]
[358740725,1745406865099,500.0,0.00043835,31]
[358740726,1745406865156,500.0,0.00043835,31]
[358740727,1745406865200,500.0,0.00043835,31]
[358740728,1745406865271,500.0,0.00043835,31]
[358740729,1745406865344,500.0,0.00043835,31]
[358740730,1745406865401,500.0,0.00043835,31]
[358740731,1745406865449,500.0,0.00043835,31]
[358740732,1745406865511,500.0,0.00043835,31]
[358740733,1745406865565,500.0,0.00043835,31]
[358740734,1745406865615,500.0,0.00043835,31]
[358740735,1745406865667,500.0,0.00043835,31]
[358740736,1745406865722,500.0,0.00043835,31]
[358740737,1745406865779,500.0,0.00043835,31]
[358740738,1745406865827,500.0,0.00043835,31]
[358740739,1745406865884,500.0,0.00043835,31]
[358740740,1745406865944,500.0,0.00043835,31]
[358740741,1745406866651,500.0,0.00043835,31]
[358740742,1745406866699,500.0,0.00043835,31]
[358740743,1745406866744,500.0,0.00043835,31]
[358740744,1745406866792,500.0,0.00043835,31]
[358740745,1745406873445,500.0,0.00043835,31]
[358740746,1745406873528,500.0,0.00043835,31]
[358740747,1745406879088,500.0,0.00043835,31]
[358740748,1745406879154,500.0,0.00043835,31]
[358740749,1745406879204,500.0,0.00043835,31]
[358740750,1745406879260,573.29797902,0.00043835,31]
[358740753,1745406914016,2718.83,0.0004383,30]
[358740756,1745406954502,151.0,0.000438,30]
[358740762,1745406982649,3509.36,0.0004383,30]
[358740763,1745406998759,2000.71,0.0004383,30]
[358740774,1745407237870,230.36644211,0.00043835,31]
[358740776,1745407294057,500.0,0.00043835,30]
[358740777,1745407306074,531.6081347,0.00043835,30]
[358740779,1745407389124,999.67013774,0.00043835,30]
[358740781,1745407538228,5081.11506514,9e-05,2]
[358740782,1745407557202,10220.19671165,6.94e-05,2]
[358740783,1745407557229,1243.13975947,6.94e-05,2]
[358740784,1745407569372,4814.82070247,8e-05,2]
[358740786,1745407570761,-2000.0,0.0002,2]
[358740787,1745407582824,237.91,0.00038621,30]
[358740789,1745407629212,1239.0445,0.000153,2]
[358740790,1745407629774,500.0,0.00041817,60]
[358740791,1745407631329,500.0,0.00042365,60]
[358740792,1745407632965,500.0,0.00043461,60]
[358740793,1745407633144,760.9555,0.00015,2]
[358740794,1745407633166,810.96859538,0.00015,2]
[358740795,1745407636574,1189.03140462,0.00015,2]
[358740796,1745407636596,864.4156719,0.00015,2]
[358740797,1745407667936,50000.0,0.00043,30]
[358740798,1745407678689,1135.5843281,0.0001,2]
[358740799,1745407678711,2000.0,0.0001,2]
[358740800,1745407678734,2000.0,0.0001,2]
[358740801,1745407678756,2000.0,0.0001,2]
[358740802,1745407678779,2000.0,0.0001,2]
[358740803,1745407678800,2000.0,0.0001,2]
[358740804,1745407678822,2000.0,0.0001,2]
[358740805,1745407678842,2000.0,0.0001,2]
[358740806,1745407678864,2000.0,0.0001,2]
[358740807,1745407678884,2000.0,0.0001,2]
[358740808,1745407678905,3942.03953806,0.0001,2]
[358740809,1745407678927,9373.39304072,0.0001,2]
[358740810,1745407698140,2000.0,0.0001439,2]
[358740811,1745407698170,2000.0,0.0001439,2]
[358740812,1745407698200,626.60695928,0.0001439,2]
[358740813,1745407698230,5318.173348,0.0001439,2]
[358740814,1745407699837,9152.1415832,0.0004383,120]
[358740815,1745407700416,404.79367494,0.000135,2]
[358740816,1745407700586,14.24672605,0.000125,2]
[358740817,1745407700608,282.54551767,0.000125,2]
[358740819,1745407708038,1865.2381521,0.0001,2]
[358740820,1745407715519,2534.04298223,9.828e-05,2]
[358740821,1745407715544,8403.78313457,9.828e-05,2]
[358740822,1745407718648,1596.21686543,0.000149,2]
[358740823,1745407718671,4051.47125633,0.000149,2]
[358740824,1745407720889,2641.08269089,0.0001,2]
[358740826,1745407728839,1363.35972616,0.00010136,2]
[358740827,1745407728980,1944.08632662,0.00013368,2]
[358740828,1745407729003,10000.0,0.00013368,2]
[358740829,1745407729025,2015.42404337,0.00013368,2]
[358740847,1745407822188,78845.3759007,0.000199,3]
[358740848,1745407822215,100000.0,0.000199,3]
[358740849,1745407822240,31984.5484449,0.000199,3]
[358740850,1745407825255,600.0,0.00042913,60]
[358740851,1745407826800,600.0,0.00043461,60]
[358740859,1745407831653,-3593.44462,0.00019701,2]
[358740860,1745407831663,-300.0,0.00019899,2]
[358740861,1745407831675,-900.0,0.00019899,2]
[358740862,1745407831686,-300.0,0.00019899,2]
[358740863,1745407831696,-1680.28685567,0.000199,2]
[358740864,1745407831712,-4731.77831279,0.000199,2]
[358740865,1745407831722,-500.0,0.00019973,2]
[358740866,1745407831731,-500.0,0.00019973,2]
[358740867,1745407831741,-300.0,0.00019999,2]
[358740868,1745407831751,-500.0,0.00019999,2]
[358740869,1745407831760,-183.79574916,0.00019999,2]
[358740870,1745407831769,-34495.77238137,0.0002,2]
[358740871,1745407831781,-18721.72867472,0.0002,2]
[358740886,1745407837684,-455.45999772,0.0002,2]
[358740887,1745407837737,-4027027.823455,0.0002,2]
[358740888,1745407837749,-2358722.8491447,0.0002,2]
[358741108,1745407840176,-4826639.97199304,0.0002,2]
[358741112,1745407840209,-400.07483383,0.0002,2]
[358741115,1745407840220,-3672.6988002,0.0002,2]
[358741117,1745407840231,-58935.31621665,0.0002,2]
[358741147,1745407840506,-88791.48288393,0.0002,2]
[358741377,1745407842749,-46798.4088,0.0002,2]
[358741384,1745407842805,-14982.08436,0.0002,2]
[358741391,1745407842862,-261.51798087,0.0002,2]
[358741394,1745407842874,-15906.97021421,0.0002,2]
[358741399,1745407842917,-1776.20347505,0.0002,2]
[358741406,1745407842974,-10439.42702991,0.0002,2]
[358741644,1745407845562,-17702.37605782,0.0002,2]
[358741658,1745407845726,-651.1875,0.0002,2]
[358741681,1745407845991,-5568.48895337,0.0002,2]
[358742305,1745407927821,200.0,0.00043836,30]
[358742306,1745407927856,-150.0,0.000199,2]
[358742307,1745407928620,207.4,0.00043836,30]
[358742308,1745407929284,215.0738,0.00043836,30]
[358742309,1745407929904,223.0315306,0.00043836,30]
[358742310,1745407930605,231.28369723,0.00043836,30]
[358742311,1745407931802,239.84119403,0.00043836,30]
[358742312,1745407932560,248.71531821,0.00043836,30]
[358742313,1745407933281,257.91778498,0.00043836,30]
[358742314,1745407933925,267.46074303,0.00043836,30]
[358742315,1745407934570,277.35679052,0.00043836,30]
[358742316,1745407935207,287.61899177,0.00043836,30]
[358742317,1745407935848,298.26089446,0.00043836,30]
[358742318,1745407937173,309.29654756,0.00043836,30]
[358742319,1745407937348,320.74051982,0.00043836,30]
[358742320,1745407937889,332.60791905,0.00043836,30]
[358742321,1745407938637,344.91441206,0.00043836,30]
[358742322,1745407939292,357.6762453,0.00043836,30]
[358742323,1745407939923,370.91026638,0.00043836,30]
[358742324,1745407940571,384.63394623,0.00043836,30]
[358742325,1745407941193,600.0,0.00043836,30]
[358742329,1745408000827,566.49,0.00043836,30]
[358742346,1745408173189,500.0,0.00043835,30]
[358742347,1745408173446,397.3,0.00043835,30]
[358742348,1745408257198,1633.0,0.0004,120]
[358742349,1745408304555,-900.0,0.00019899,2]
[358742350,1745408304578,-300.0,0.00019899,2]
[358742351,1745408304601,-382.4543,0.000199,2]
[358742352,1745408304622,-417.5457,0.000199,2]
[358742353,1745408309601,571.27,0.000422,63]
[358742355,1745408348551,-571.27,0.000196,2]
[358742356,1745408348575,-300.0,0.00019899,2]
[358742357,1745408348597,-1128.73,0.000199,2]
[358742358,1745408365105,210.56,0.00027125,120]
[358742359,1745408365301,210.56,0.00029837,120]
[358742360,1745408365523,210.56,0.0003255,120]
[358742361,1745408425807,-900.0,0.00019899,2]
[358742362,1745408425832,-300.0,0.00019899,2]
[358742363,1745408425855,-693.9066,0.000199,2]
[358742364,1745408425878,-106.0934,0.000199,2]
[358742365,1745408603886,1000.0,0.00043836,30]
[358742366,1745408608144,1000.0,0.00043836,30]
[358742367,1745408612071,1000.0,0.00043836,30]
[358742368,1745408616509,1000.0,0.00043836,30]
[358742369,1745408618888,1000.0,0.00043836,30]
[358742370,1745408621006,1000.0,0.00043836,30]
[358742371,1745408622834,1000.0,0.00043836,30]
[358742372,1745408624768,1000.0,0.00043836,30]
[358742373,1745408626656,1000.0,0.00043836,30]
[358742374,1745408628549,1000.0,0.00043836,30]
[358742375,1745408630647,1000.0,0.00043836,30]
[358742376,1745408649449,1000.0,0.00043836,30]
[358742377,1745408655614,218.08,0.00032904,30]
[358742378,1745408655849,218.08,0.00041619,30]
[358742379,1745408659910,1000.0,0.00043836,30]
[358742380,1745408662094,1000.0,0.00043836,30]
[358742381,1745408664451,1000.0,0.00043836,30]
[358742382,1745408666385,1000.0,0.00043836,30]
[358742383,1745408668269,1000.0,0.00043836,30]
[358742384,1745408670362,1000.0,0.00043836,30]
[358742386,1745408671967,1000.0,0.00043836,30]
[358742387,1745408673817,1000.0,0.00043836,30]
[358742388,1745408675854,1000.0,0.00043836,30]
[358742389,1745408678260,1000.0,0.00043836,30]
[358742390,1745408679172,1000.0,0.00043836,30]
[358742391,1745408680607,1000.0,0.00043836,30]
[358742392,1745408690387,1000.0,0.00043836,30]
[358742393,1745408691956,1000.0,0.00043836,30]
[358742394,1745408702429,1000.0,0.00043836,30]
[358742395,1745408744518,-203.02790837,0.00019101,2]
[358742401,1745408829021,-1287.92209163,0.00019101,2]
[358742402,1745408829049,-150.0,0.00019863,2]
[358742403,1745408829077,-900.0,0.00019899,2]
[358742404,1745408829105,-300.0,0.00019899,2]
[358742405,1745408829132,-1359.0,0.00019899,2]
[358742406,1745408829159,-300.0,0.00019899,2]
[358742407,1745408829186,-1863.7194,0.000199,2]
[358742408,1745408829213,-6875.9772,0.000199,2]
[358742409,1745408829242,-382.4543,0.000199,2]
[358742410,1745408829270,-2240.1823,0.000199,2]
[358742411,1745408829298,-442.76486001,0.000199,2]
[358742412,1745408829327,-354.46656503,0.000199,2]
[358742413,1745408829355,-155.09447373,0.00019973,2]
[358742414,1745408829388,-294.30947494,0.00019973,2]
[358742415,1745408829416,-500.0,0.00019973,2]
[358742416,1745408829443,-970.0688,0.00019999,2]
[358742417,1745408830231,-271077.40192932,0.0002,2]
[358742418,1745408830282,-307829.32086,0.0002,2]
[358742419,1745408830640,-307829.32086,0.0002,2]
[358742420,1745408831466,-307829.32086,0.0002,2]
[358742421,1745408832521,-307829.32086,0.0002,2]
[358742422,1745408857490,499.20539,0.0004383,30]
[358742424,1745408897962,-9119.024,0.000199,2]
[358742425,1745408897988,-136.952,0.000199,2]
[358742426,1745408921164,33076.89843293,0.000425,120]
[358742434,1745408939312,-4951.85274135,0.000199,2]
[358742435,1745408939349,-96.2945173,0.000199,2]
[358742436,1745408942348,-198.88205604,0.000199,2]
[358742437,1745408942373,-10.65662218,0.000199,2]
[358742439,1745408961306,1000.0,0.00043836,120]
[358742440,1745408979236,-152.605632,0.000199,2]
[358742441,1745408979264,-329.01971724,0.000199,2]
[358742442,1745408979291,-300.0,0.00019999,2]
[358742443,1745408979354,-2436.74930152,0.0002,2]
[358742444,1745408979399,1000.0,0.00043836,120]
[358742446,1745408981763,1000.0,0.00043836,120]
[358742447,1745409002601,-152.0,0.00019999,2]
[358742449,1745409031812,-196.78438222,0.000199,2]
[358742450,1745409031823,-3301.2351609,0.000199,2]
[358742451,1745409031834,-748.0,0.00019999,2]
[358742452,1745409031848,-462982.92200841,0.0002,2]
[358742509,1745409037750,-1910.23488341,0.0002,2]
[358742510,1745409037912,-810.149,0.0002,2]
[358742511,1745409037971,-1024990.29593856,0.0002,2]
[358742512,1745409037983,-300.99738329,0.0002,2]
[358742513,1745409037993,-1481.43211323,0.0002,2]
[358742514,1745409038003,-420.26048734,0.0002,2]
[358742515,1745409038014,-2888528.13562805,0.0002,2]
[358742516,1745409038024,-650.53048022,0.0002,2]
[358742517,1745409038034,-151.0,0.0002,2]
[358742518,1745409038044,-244.18517739,0.0002,2]
[358742519,1745409038053,-1720.66,0.00020733,2]
[358742520,1745409038063,-282.47,0.00020892,2]
[358742521,1745409038073,-200.0,0.00020951,2]
[358742522,1745409038083,-5357.15,0.00020956,2]
[358742523,1745409038093,-1390.53,0.00020956,2]
[358742524,1745409038102,-548.21,0.0002098,2]
[358742525,1745409038112,-250.0,0.00021,2]
[358742526,1745409038122,-1000.0,0.00021101,2]
[358742527,1745409038131,-15369.86,0.00021101,2]
[358742528,1745409038141,-901.72,0.00021153,2]
[358742529,1745409038150,-10552.82,0.00021253,2]
[358742530,1745409038159,-1490.95,0.00021365,2]
[358742531,1745409038169,-25031.51914453,0.00021403,2]
[358742532,1745409038180,-150.0,0.0002141,2]
[358742534,1745409038190,-1572.75,0.00021466,2]
[358742536,1745409038199,-3038.44,0.00021466,2]
[358742538,1745409038209,-250.0,0.00021538,2]
[358742540,1745409038219,-176.94,0.00021555,2]
[358742542,1745409038228,-4844.49191977,0.000216,3]
[358742544,1745409038238,-23900.0,0.00021613,2]
[358742546,1745409038247,-210.56,0.000217,2]
[358742548,1745409038257,-250.0,0.0002178,2]
[358742550,1745409038266,-4844.49191971,0.00021797,3]
[358742552,1745409038276,-1260.0,0.00021881,2]
[358742554,1745409038285,-181.22,0.00021918,2]
[358742556,1745409038295,-166.66,0.00021992,2]
[358742558,1745409038304,-250.0,0.00022,2]
[358742560,1745409038313,-150.0,0.00022,2]
[358742562,1745409038322,-6883.11308969,0.00022,15]
[358742564,1745409038336,-1258.80383522,0.00022,15]
[358742566,1745409038345,-250.0,0.00022,2]
[358742568,1745409038355,-150.0,0.00022,2]
[358742570,1745409038364,-48892.25,0.00022005,2]
[358742572,1745409038374,-300.0,0.00022393,2]
[358742574,1745409038383,-200.0,0.00022424,2]
[358742576,1745409038392,-41962.93,0.00022443,2]
[358742578,1745409038402,-500.0,0.00022509,7]
[358742581,1745409038424,-519.05,0.00022545,2]
[358742584,1745409038435,-19999.99,0.00022562,2]
[358742586,1745409038445,-200.0,0.00022582,2]
[358742588,1745409038455,-1173.7987,0.00022603,10]
[358742590,1745409038464,-300.0,0.00022633,2]
[358742592,1745409038474,-500.0,0.00022633,2]
[358742594,1745409038485,-2769.83,0.00022634,2]
[358742596,1745409038496,-76807.08,0.00022634,2]
[358742598,1745409038506,-509.05,0.00022673,2]
[358742600,1745409038517,-4844.49191971,0.00022693,4]
[358742602,1745409038528,-181.4,0.00022713,2]
[358742604,1745409038538,-243.87,0.00022925,2]
[358742606,1745409038548,-20005.93408226,0.00023,15]
[358742608,1745409038558,-300.0,0.00023,2]
[358742611,1745409038568,-212.86,0.00023449,2]
[358742613,1745409038579,-4844.49191971,0.0002359,4]
[358742615,1745409038590,-1490.95,0.00023628,2]
[358742617,1745409038602,-1000.0,0.00023739,2]
[358742619,1745409038613,-707.54,0.00023836,2]
[358742621,1745409038624,-1763.0,0.00023941,2]
[358742623,1745409038634,-833.69145673,0.00024,2]
[358742625,1745409038645,-470.41034981,0.0002402,2]
[358742627,1745409038655,-452.64596661,0.00024116,2]
[358742630,1745409038665,-210.56,0.00024412,2]
[358742632,1745409038675,-4844.49191971,0.00024486,5]
[358742634,1745409038685,-212.86,0.00024752,2]
[358742636,1745409038696,-502.14341741,0.00024773,2]
[358742638,1745409038706,-500.0,0.00024773,2]
[358742640,1745409038716,-518.07384473,0.00024773,2]
[358742642,1745409038728,-500.0,0.00024799,2]
[358742644,1745409038738,-609399.347169,0.000248,3]
[358742646,1745409038748,-250.0,0.00024817,2]
[358742648,1745409038758,-500.0,0.00024873,2]
[358742650,1745409038768,-499.20891726,0.00024873,2]
[358742652,1745409038778,-500.0,0.00024873,2]
[358742655,1745409038789,-500.0,0.00024873,2]
[358742657,1745409038798,-183.21095633,0.000249,2]
[358742659,1745409038809,-610091.535495,0.000249,3]
[358742661,1745409038820,-350.0,0.00025,2]
[358742663,1745409038829,-4844.49191971,0.00025383,6]
[358742665,1745409038842,-166.66,0.00025621,2]
[358742667,1745409038855,-1490.95,0.00025892,2]
[358742670,1745409038873,-212.86,0.00026055,2]
[358742672,1745409038884,-830.0,0.00026194,2]
[358742674,1745409038895,-4844.49191971,0.00026279,6]
[358742676,1745409038906,-1000.0,0.00026376,2]
[358742678,1745409038917,-400.0,0.00027,2]
[358742681,1745409038930,-4844.49191971,0.00027176,7]
[358742683,1745409038942,-212.86,0.00027358,2]
[358742685,1745409038952,-499.26,0.00027397,2]
[358742687,1745409038963,-1940.79,0.00027397,2]
[358742689,1745409038974,-373.0,0.000274,2]
[358742691,1745409038984,-1006.64328016,0.00028,2]
[358742693,1745409038994,-4844.49191971,0.00028072,7]
[358742695,1745409039004,-1490.95,0.00028156,2]
[358742697,1745409039016,-212.86,0.0002866,2]
[358742699,1745409039027,-1940.79,0.00028767,2]
[358742701,1745409039037,-545.0,0.00028795,5]
[358742703,1745409039047,-4844.49191971,0.00028969,8]
[358742706,1745409039058,-75039.92112642,0.00029,2]
[358742708,1745409039069,-450.0,0.00029,2]
[358742710,1745409039079,-1000.0,0.00029014,2]
[358742712,1745409039091,-4844.49191971,0.00029866,8]
[358742714,1745409039101,-212.86,0.00029963,2]
[358742716,1745409039112,-1320.95623379,0.0003,20]
[358742718,1745409039123,-5379.93769628,0.0003,10]
[358742720,1745409039133,-451.15295149,0.0003,2]
[358742722,1745409039144,-194.2,0.0003,2]
[358742725,1745409039154,-160.70290143,0.0003,2]
[358742727,1745409039164,-610.0,0.00030137,2]
[358742729,1745409039174,-1940.79,0.00030137,2]
[358742731,1745409039184,-1000.0,0.00030252,5]
[358742733,1745409039194,-685.57527812,0.00030352,5]
[358742735,1745409039204,-999.17900117,0.00030352,5]
[358742737,1745409039215,-509.92508194,0.00030352,5]
[358742740,1745409039229,-1490.95,0.0003042,2]
[358742742,1745409039239,-151.93389675,0.000305,2]
[358742744,1745409039249,-4844.49191971,0.00030762,9]
[358742746,1745409039259,-500.0,0.000308,5]
[358742748,1745409039269,-500.0,0.000308,5]
[358742750,1745409039279,-501.40751603,0.000308,5]
[358742752,1745409039289,-500.0,0.000308,5]
[358742754,1745409039304,-500.0,0.000308,5]
[358742756,1745409039315,-500.0,0.00031,2]
[358742759,1745409039326,-212.86,0.00031266,2]
[358742761,1745409039338,-1940.79,0.00031507,2]
[358742763,1745409039349,-519.05,0.00031562,2]
[358742765,1745409039360,-1000.0,0.00031651,2]
[358742767,1745409039370,-4844.49191971,0.00031659,10]
[358742769,1745409039380,-3196.96066302,0.00032,5]
[358742771,1745409039391,-1507.11634356,0.00032,2]
[358742773,1745409039401,-4844.49191971,0.00032555,10]
[358742775,1745409039413,-212.86,0.00032569,2]
[358742778,1745409039424,-1490.95,0.00032684,2]
[358742780,1745409039434,-4653.5514514,0.000328,2]
[358742782,1745409039444,-150.0,0.00032877,2]
[358742784,1745409039454,-1940.79,0.00032877,2]
[358742786,1745409039465,-502.13170939,0.00032877,5]
[358742788,1745409039475,-373.91186648,0.000329,2]
[358742790,1745409039485,-4557.32775913,0.00033,2]
[358742792,1745409039496,-25127.17473418,0.00033,2]
[358742794,1745409039506,-550.0,0.00033,2]
[358742796,1745409039516,-200.0,0.00033151,2]
[358742798,1745409039526,-329.01971724,0.00033238,2]
[358742800,1745409039536,-196.78438221,0.00033238,2]
[358742802,1745409039546,-3301.23516088,0.00033238,2]
[358742805,1745409039557,-153.903,0.00033362,2]
[358742807,1745409039567,-2059.0,0.00033362,2]
[358742809,1745409039578,-1334.0,0.00033362,2]
[358742811,1745409039588,-917.0,0.00033362,2]
[358742813,1745409039600,-796.0,0.00033362,2]
[358742815,1745409039611,-1285.0,0.00033362,2]
[358742817,1745409039621,-912.619,0.00033362,2]
[358742819,1745409039632,-1444.0,0.00033362,2]
[358742821,1745409039642,-547.0,0.00033362,2]
[358742823,1745409039652,-578.0,0.00033362,2]
[358742825,1745409039662,-4166.0,0.00033362,2]
[358742827,1745409039673,-265.684,0.00033362,2]
[358742830,1745409039683,-254.601,0.00033362,2]
[358742833,1745409039694,-2145.0,0.00033362,2]
[358742836,1745409039703,-3984.0,0.00033362,2]
[358742838,1745409039713,-876.0,0.00033362,2]
[358742841,1745409039724,-870.0,0.00033362,2]
[358742844,1745409039733,-4844.49191971,0.00033452,11]
[358742846,1745409039748,-150.0,0.00033742,2]
[358742849,1745409039759,-212.86,0.00033871,2]
[358742851,1745409039769,-4003.47403547,0.00034,2]
[358742855,1745409039780,-4844.49191971,0.00034348,11]
[358742858,1745409039790,-150.0,0.00034548,10]
[358742860,1745409039800,-150.0,0.00034607,2]
[358742862,1745409039810,-873.99679988,0.0003489,14]
[358742864,1745409039821,-1490.95,0.00034948,2]
[358742866,1745409039831,-6029.78467888,0.00035,2]
[358742868,1745409039845,-1569.32102285,0.00035,7]
[358742870,1745409039855,-600.0,0.00035,2]
[358742872,1745409039865,-707.54,0.00035068,2]
[358742874,1745409039876,-212.86,0.00035174,2]
[358742876,1745409039886,-4844.49191971,0.00035245,12]
[358742878,1745409039896,-150.0,0.00035472,2]
[358742880,1745409039906,-181.22,0.00035616,2]
[358742882,1745409039917,-205035.86259114,0.0003593,7]
[358742885,1745409039928,-4844.49191971,0.00036141,13]
[358742887,1745409039939,-1013.09623006,0.00036279,5]
[358742889,1745409039950,-1000.0,0.00036279,5]
[358742891,1745409039960,-1000.0,0.00036279,5]
[358742893,1745409039971,-503.55173525,0.00036279,5]
[358742895,1745409039982,-150.0,0.00036337,2]
[358742897,1745409039993,-2059.0,0.00036362,2]
[358742899,1745409040003,-1334.0,0.00036362,2]
[358742901,1745409040014,-390.701,0.00036362,2]
[358742904,1745409040025,-796.0,0.00036362,2]
[358742906,1745409040036,-1285.0,0.00036362,2]
[358742908,1745409040047,-910.0,0.00036362,2]
[358742910,1745409040057,-1444.0,0.00036362,2]
[358742912,1745409040068,-547.0,0.00036362,2]
[358742914,1745409040078,-578.0,0.00036362,2]
[358742916,1745409040090,-4166.0,0.00036362,2]
[358742918,1745409040100,-152.0,0.00036362,2]
[358742920,1745409040110,-2145.0,0.00036362,2]
[358742922,1745409040121,-3984.0,0.00036362,2]
[358742924,1745409040130,-876.0,0.00036362,2]
[358742926,1745409040141,-870.0,0.00036362,2]
[358742929,1745409040151,-650.0,0.00037,2]
[358742931,1745409040161,-4844.49191971,0.00037038,13]
[358742933,1745409040172,-150.0,0.00037203,2]
[358742935,1745409040182,-1490.95,0.00037212,2]
[358742937,1745409040193,-500.0,0.0003745,5]
[358742939,1745409040203,-1541.82160026,0.0003759,2]
[358742941,1745409040212,-4844.49191971,0.00037934,14]
[358742943,1745409040222,-150.0,0.00038068,2]
[358742945,1745409040232,-500.0,0.00038271,2]
[358742947,1745409040242,-4554.52,0.000384,14]
[358742949,1745409040252,-150.0,0.00038421,5]
[358742951,1745409040262,-500.0,0.00038421,5]
[358742953,1745409040272,-20573.0,0.000387,2]
[358742956,1745409040282,-4844.49191971,0.00038831,14]
[358742958,1745409040304,-150.92,0.000389,2]
[358742960,1745409040315,-150.92,0.000389,2]
[358742962,1745409040325,-150.92,0.000389,2]
[358742964,1745409040336,-150.92,0.000389,2]
[358742966,1745409040347,-150.92,0.000389,2]
[358742969,1745409040357,-150.92,0.000389,2]
[358742971,1745409040367,-150.92,0.000389,2]
[358742973,1745409040377,-150.92,0.000389,2]
[358742975,1745409040387,-150.92,0.000389,2]
[358742977,1745409040397,-150.92,0.000389,2]
[358742979,1745409040407,-150.92,0.000389,2]
[358742981,1745409040417,-150.92,0.000389,2]
[358742982,1745409040428,-150.92,0.000389,2]
[358742985,1745409040438,-150.92,0.000389,2]
[358742987,1745409040448,-150.92,0.000389,2]
[358742989,1745409040459,-150.92,0.000389,2]
[358742991,1745409040468,-150.92,0.000389,2]
[358742993,1745409040479,-150.92,0.000389,2]
[358742995,1745409040490,-150.92,0.000389,2]
[358742997,1745409040500,-150.92,0.000389,2]
[358742999,1745409040511,-150.92,0.000389,2]
[358743001,1745409040520,-150.92,0.000389,2]
[358743003,1745409040530,-150.92,0.000389,2]
[358743005,1745409040540,-150.92,0.000389,2]
[358743007,1745409040550,-150.92,0.000389,2]
[358743009,1745409040560,-150.92,0.000389,2]
[358743011,1745409040571,-150.92,0.000389,2]
[358743013,1745409040581,-150.92,0.000389,2]
[358743015,1745409040592,-150.92,0.000389,2]
[358743018,1745409040603,-150.92,0.000389,2]
[358743021,1745409040613,-150.92,0.000389,2]
[358743023,1745409040623,-150.92,0.000389,2]
[358743025,1745409040634,-150.92,0.000389,2]
[358743027,1745409040645,-150.92,0.000389,2]
[358743029,1745409040657,-150.92,0.000389,2]
[358743032,1745409040668,-150.92,0.000389,2]
[358743034,1745409040678,-150.92,0.000389,2]
[358743036,1745409040688,-150.92,0.000389,2]
[358743038,1745409040698,-150.92,0.000389,2]
[358743040,1745409040708,-150.92,0.000389,2]
[358743042,1745409040718,-150.92,0.000389,2]
[358743044,1745409040728,-150.92,0.000389,2]
[358743046,1745409040738,-150.92,0.000389,2]